fUST/lending_fUST_20260210
["ID","MTS","AMOUNT","RATE_DAILY","PERIOD"]
[404892340,1770655839495,-487.0,0.00133789,120]
[404892341,1770655839504,-487.0,0.00133789,120]
[404892342,1770655839514,-487.0,0.00133789,120]
[404892343,1770655839523,-487.0,0.00133789,120]
[404892344,1770655839532,-487.0,0.00133789,120]
[404892345,1770655839541,-487.0,0.00133789,120]
[404892346,1770655839551,-487.0,0.00133789,120]
[404892348,1770655839564,-487.0,0.00133789,120]
[404892349,1770655839576,-487.0,0.00133789,120]
[404892350,1770655839587,-487.0,0.00133789,120]
[404892351,1770655839599,-487.0,0.00133789,120]
[404892353,1770655839610,-486.47,0.00133789,120]
[404892354,1770655839622,-10415.71565059,0.00135205,2]
[404892355,1770655839635,-760.88,0.00158458,120]
[404892356,1770655839645,-152.17,0.00158468,120]
[404892357,1770655839655,-219.13,0.00158478,120]
[404892358,1770655839666,-262.95,0.00158488,120]
[404892359,1770655839676,-315.54,0.00158498,120]
[404892360,1770655839689,-10871.9696795,0.00158508,2]
[404892361,1770655839699,-182.6,0.00181801,120]
[404892362,1770655839710,-11103.21561799,0.00181811,2]
[404892363,1770655839721,-378.65,0.0018256,120]
[404892364,1770655839732,-454.38,0.0018257,120]
[404892365,1770655839744,-545.26,0.0018258,120]
[404892366,1770655839755,-1271.98,0.0018259,120]
[404892367,1770655839766,-1526.38,0.00184655,120]
[404892368,1770655839776,-1831.65,0.00184665,120]
[404892369,1770655839787,-15000.0,0.0019,120]
[404892370,1770655839798,-23200.79714899,0.00198,120]
[404892371,1770655839809,-1000.0,0.002,120]
[404892372,1770655839819,-883.32,0.00203478,120]
[404892373,1770655839830,-736.1,0.00203478,120]
[404892374,1770655839842,-613.42,0.00203478,120]
[404892375,1770655839854,-1059.98,0.00203488,120]
[404892376,1770655839865,-3054.66621369,0.00203488,60]
[404892378,1770655839879,-1555.1083486,0.00203498,54]
[404892379,1770655839890,-18808.05425766,0.00203498,30]
[404892380,1770655839908,-14138.57734564,0.00203498,30]
[404892381,1770655839920,-12240.73176625,0.00205114,2]
[404892382,1770655839931,-4563.16755253,0.00207225,120]
[404892383,1770655839945,-2000.0,0.00213999,30]
[404892384,1770655839956,-654.31,0.0021679,120]
[404892385,1770655839968,-214.68,0.002168,120]
[404892386,1770655839987,-20000.0,0.002199,120]
[404892387,1770655839998,-717.86100922,0.00228277,5]
[404892388,1770655840010,-13609.49385299,0.00228417,2]
[404892389,1770655840021,-20000.0,0.002298,120]
[404892390,1770655840031,-20000.0,0.002299,120]
[404892391,1770655840042,-3054.66621369,0.00232275,60]
[404892392,1770655840053,-7351.387186,0.00232285,30]
[404892393,1770655840065,-530.11,0.00233,30]
[404892394,1770655840075,-212.96104388,0.0023425,120]
[404892395,1770655840087,-18378.35761948,0.0023688,120]
[404892396,1770655840099,-369.83257055,0.0023688,120]
[404892397,1770655840111,-981.11094894,0.0023688,120]
[404892398,1770655840143,-1468.4,0.00213999,30]
[404892399,1770655841384,-285.0,0.0013379,120]
[404892400,1770655841394,-531.6,0.00213999,30]
[404892401,1770655841404,-2000.0,0.00213999,30]
[404892402,1770655841413,-2000.0,0.00213999,30]
[404892403,1770655841422,-567.48531261,0.0023688,120]
[404892404,1770655841433,-1453.80348774,0.00237448,5]
[404892405,1770655841443,-250.0,0.00237879,120]
[404892406,1770655841452,-250.0,0.00237879,120]
[404892407,1770655841461,-250.0,0.00237879,120]
[404892408,1770655841470,-250.0,0.00237879,120]
[404892409,1770655841479,-250.0,0.00237879,120]
[404892410,1770655841489,-250.0,0.00237879,120]
[404892411,1770655841498,-250.0,0.00237879,120]
[404892412,1770655841509,-250.0,0.00237879,120]
[404892413,1770655841518,-250.0,0.00237879,120]
[404892414,1770655841528,-250.0,0.00237879,120]
[404892415,1770655841538,-250.0,0.00237879,120]
[404892416,1770655841547,-250.0,0.00237879,120]
[404892417,1770655841556,-250.0,0.00237879,120]
[404892418,1770655841566,-250.0,0.00237879,120]
[404892419,1770655841576,-250.0,0.00237879,120]
[404892420,1770655841585,-250.0,0.00237879,120]
[404892421,1770655841596,-250.0,0.00237879,120]
[404892422,1770655841605,-250.0,0.00237879,120]
[404892423,1770655841615,-250.0,0.00237879,120]
[404892424,1770655841625,-151.0,0.00237879,120]
[404892425,1770655841634,-250.0,0.00237879,120]
[404892426,1770655841644,-151.0,0.00237879,120]
[404892427,1770655841654,-159.39164934,0.00237879,120]
[404892428,1770655841663,-250.0,0.00237879,120]
[404892429,1770655841673,-151.0,0.00237879,120]
[404892430,1770655841682,-250.0,0.00237879,120]
[404892431,1770655841691,-151.0,0.00237879,120]
[404892432,1770655841701,-151.0,0.00237879,120]
[404892433,1770655841710,-250.0,0.00237879,120]
[404892434,1770655841719,-151.0,0.00237879,120]
[404892435,1770655841729,-156.587,0.00237879,120]
[404892436,1770655841738,-272.19696825,0.00237879,120]
[404892437,1770655841747,-173.49232412,0.00237879,120]
[404892438,1770655841756,-162.380719,0.00237879,120]
[404892439,1770655841765,-180.0,0.00237879,120]
[404892440,1770655841774,-168.3888056,0.00237879,120]
[404892441,1770655841783,-180.0,0.00237879,120]
[404892442,1770655841792,-174.61919141,0.00237879,120]
[404892443,1770655841801,-243.61965722,0.00237879,120]
[404892444,1770655841811,-181.08010149,0.00237879,120]
[404892445,1770655841819,-187.78006525,0.00237879,120]
[404892446,1770655841828,-250.0,0.00237879,120]
[404892447,1770655841836,-194.72792766,0.00237879,120]
[404892448,1770655841846,-500.0,0.00237879,120]
[404892449,1770655841855,-250.0,0.00237879,120]
[404892450,1770655841864,-201.93286099,0.00237879,120]
[404892451,1770655841873,-250.0,0.00237879,120]
[404892452,1770655841882,-500.0,0.00237879,120]
[404892453,1770655841892,-250.0,0.00237879,120]
[404892454,1770655841901,-209.40437684,0.00237879,120]
[404892455,1770655841911,-500.0,0.00237879,120]
[404892456,1770655841921,-250.0,0.00237879,120]
[404892457,1770655841930,-217.15233878,0.00237879,120]
[404892458,1770655841939,-500.0,0.00237879,120]
[404892459,1770655841947,-250.0,0.00237879,120]
[404892460,1770655841957,-500.0,0.00237879,120]
[404892461,1770655841966,-225.18697532,0.00237879,120]
[404892462,1770655841977,-250.0,0.00237879,120]
[404892463,1770655841987,-250.0,0.00237879,120]
[404892464,1770655841996,-233.51889341,0.00237879,120]
[404892465,1770655842006,-250.0,0.00237879,120]
[404892466,1770655842015,-242.15909246,0.00237879,120]
[404892467,1770655842024,-250.0,0.00237879,120]
[404892468,1770655842034,-251.11897888,0.00237879,120]
[404892469,1770655842043,-500.0,0.00237879,120]
[404892470,1770655842052,-250.0,0.00237879,120]
[404892471,1770655842062,-206.04652704,0.00237879,120]
[404892472,1770655842071,-500.0,0.00237879,120]
[404892473,1770655842081,-250.0,0.00237879,120]
[404892474,1770655842091,-500.0,0.00237879,120]
[404892475,1770655842100,-250.0,0.00237879,120]
[404892476,1770655842109,-500.0,0.00237879,120]
[404892477,1770655842118,-250.0,0.00237879,120]
[404892478,1770655842127,-500.0,0.00237879,120]
[404892479,1770655842136,-500.0,0.00237879,120]
[404892480,1770655842145,-500.0,0.00237879,120]
[404892481,1770655842153,-500.0,0.00237879,120]
[404892482,1770655842162,-500.0,0.00237879,120]
[404892483,1770655842171,-261.67202248,0.00237879,120]
[404892484,1770655842181,-500.0,0.00237879,120]
[404892485,1770655842190,-500.0,0.00237879,120]
[404892486,1770655842199,-500.0,0.00237879,120]
[404892487,1770655842208,-500.0,0.00237879,120]
[404892488,1770655842216,-500.0,0.00237879,120]
[404892489,1770655842227,-5498.08529038,0.0023788,120]
[404892490,1770655842236,-1640.3162001,0.00238709,30]
[404892491,1770655842246,-20000.0,0.002388,120]
[404892492,1770655842255,-5000.0,0.002389,120]
[404892493,1770655842265,-20000.0,0.002399,120]
[404892494,1770655842274,-13959.9197462,0.0023999,2]
[404892495,1770655842283,-200.0,0.0024,120]
[404892496,1770655842292,-2000.0,0.0024,120]
[404892497,1770655842301,-5000.0,0.0024,120]
[404892498,1770655842310,-212610.57883846,0.002448,120]
[404892576,1770655847747,-2000.0,0.00213999,30]
[404892577,1770655847756,-2000.0,0.00213999,30]
[404892578,1770655847766,-2000.0,0.00213999,30]
[404892579,1770655847776,-2000.0,0.00213999,30]
[404892580,1770655847785,-2000.0,0.00213999,30]
[404892581,1770655847794,-6386.95954014,0.002448,120]
[404892582,1770655847806,-697.0762,0.002448,120]
[404892583,1770655847841,-4566.83057589,0.002448,120]
[404892584,1770655847856,-5373.63187287,0.002448,120]
[404892585,1770655847867,-1268.09942411,0.002448,120]
[404892586,1770655858881,4544.89850144,0.0001,2]
[404892587,1770655858906,9850.0,0.0001,2]
[404892588,1770655858931,10000.0,0.0001,2]
[404892589,1770655858957,10000.0,0.0001,2]
[404892590,1770655858981,161867.10149856,0.0001,2]
[404892603,1770656079286,428.40030386,0.000189,2]
[404892616,1770656121926,500.0,0.00013699,2]
[404892617,1770656121980,1000.0,0.00014247,2]
[404892623,1770656173854,272.1243143,0.00013699,2]
[404892624,1770656182550,300.0,0.00013673,2]
[404892625,1770656182575,600.0,0.00014221,2]
[404892675,1770656414149,500.0,0.00013699,2]
[404892676,1770656414184,1000.0,0.00014247,2]
[404892677,1770656420959,325.60666149,0.00013273,2]
[404892703,1770656498140,394.17567021,0.00013273,2]
[404892723,1770656678849,-630.43923359,0.00030595,2]
[404892724,1770656678877,-358.30546992,0.00030904,2]
[404892725,1770656678905,-1580.83847398,0.00031216,2]
[404892726,1770656678936,-1566.94356075,0.00031849,2]
[404892727,1770656678964,-305.0,0.00037741,30]
[404892728,1770656678993,-304.5,0.00037741,30]
[404892729,1770656679020,-401.0,0.00038457,11]
[404892730,1770656679047,-761.0,0.0003872,11]
[404892731,1770656679075,-401.0,0.00039326,11]
[404892732,1770656679102,-401.0,0.0003936,11]
[404892733,1770656679130,-712.0,0.0003968,11]
[404892734,1770656679156,-317.0,0.00039851,11]
[404892735,1770656679191,-1000.0,0.00040676,30]
[404892736,1770656679228,-4482.67803718,0.00040676,2]
[404892737,1770656679262,-200.0,0.00045,120]
[404892738,1770656679289,-6250.0,0.00048669,120]
[404892739,1770656679316,-2406.61381898,0.00048769,2]
[404892740,1770656679343,-4294.64184709,0.00051061,28]
[404892741,1770656679372,-161.31490156,0.00051134,31]
[404892742,1770656679398,-10098.90477499,0.00051135,18]
[404892743,1770656679425,-1507.7821196,0.00051151,4]
[404892744,1770656679452,-287.34739471,0.00051152,120]
[404892745,1770656679479,-500.0,0.00051152,30]
[404892746,1770656679504,-15915.96,0.00051152,120]
[404892747,1770656679531,-500.0,0.00051152,120]
[404892748,1770656679556,-38000.0,0.00051153,18]
[404892749,1770656679581,-500.0,0.00051161,30]
[404892750,1770656679609,-479.76,0.00051161,30]
[404892751,1770656679635,-38000.0,0.00051161,18]
[404892752,1770656679669,-15915.96,0.00051426,120]
[404892753,1770656679696,-1507.7821196,0.0005169,4]
[404892754,1770656679722,-15915.96,0.000517,120]
[404892755,1770656679748,-15915.96,0.00051974,120]
[404892756,1770656679772,-15915.96,0.00052248,120]
[404892757,1770656679797,-27140.0781528,0.00052361,4]
[404892758,1770656679821,-515.56995015,0.00052361,4]
[404892759,1770656679847,-2886952.38800868,0.00052371,2]
[404892760,1770656679873,-1242.24,0.000524,14]
[404892761,1770656679898,-2168.07,0.000524,2]
[404892762,1770656679923,-15915.96,0.00052522,120]
[404892763,1770656679948,-15915.96,0.00052796,120]
[404892764,1770656679974,-52654.08213642,0.000529,120]
[404892767,1770656707840,500.0,0.00013273,2]
[404892768,1770656714347,222.60976665,0.00013699,2]
[404892769,1770656726150,300.0,0.00013673,2]
[404892775,1770656743127,-1235.36709357,0.00031849,2]
[404892776,1770656743145,-913.0,0.00037741,30]
[404892777,1770656743164,-172.98,0.0004,30]
[404892778,1770656743184,-1878.54759347,0.00048769,2]
[404892779,1770656743203,-11273.8,0.00051152,120]
[404892780,1770656743225,-2027.62769696,0.00051426,120]
[404892784,1770656766340,500.0,0.00013699,2]
[404892785,1770656777599,501.21236876,0.00013699,2]
[404892798,1770656811120,-913.0,0.00038919,30]
[404892799,1770656811141,-9246.17230304,0.00051426,120]
[404892800,1770656811161,-6187.61240496,0.000517,120]
[404892805,1770656829084,-201.1431763,0.00051152,120]
[404892806,1770656829106,-5086.18759504,0.000517,120]
[404892807,1770656829127,-11273.8,0.00051974,120]
[404892808,1770656829147,-11273.8,0.00052248,120]
[404892809,1770656829167,-11273.8,0.00052522,120]
[404892810,1770656829189,-11273.8,0.00052796,120]
[404892811,1770656829211,-267.33,0.0005289,30]
[404892812,1770656829231,-113468.32933266,0.000529,120]
[404892899,1770656849082,-3757.81161623,0.000528,28]
[404892900,1770656849102,-222.77,0.0005289,30]
[404892901,1770656849123,-185.64,0.0005289,30]
[404892902,1770656849143,-788265.74381187,0.000529,120]
[404892904,1770656849164,-993.79,0.000529,14]
[404892905,1770656849183,-358.30546992,0.00053,2]
[404892906,1770656849203,-11273.8,0.0005307,120]
[404892907,1770656849223,-11273.8,0.00053344,120]
[404892908,1770656849243,-11273.8,0.00053618,120]
[404892909,1770656849263,-11273.8,0.00053892,120]
[404892910,1770656849283,-11273.8,0.00054166,120]
[404892911,1770656849303,-1028.45070945,0.0005444,120]
[404892930,1770657010855,500.0,0.00013699,2]
[404892931,1770657015487,-1462.21002212,0.00031849,2]
[404892932,1770657015515,-2239.81596116,0.00048769,2]
[404892933,1770657015541,-6063.79,0.00051134,120]
[404892934,1770657015567,-6063.79,0.00051408,120]
[404892935,1770657015592,-1041.66666667,0.00051408,120]
[404892936,1770657015617,-6063.79,0.00051682,120]
[404892937,1770657015643,-6063.79,0.00051956,120]
[404892938,1770657015667,-6063.79,0.0005223,120]
[404892939,1770657015692,-6063.79,0.00052504,120]
[404892940,1770657015718,-6063.79,0.00052778,120]
[404892941,1770657015745,-6063.79,0.00053052,120]
[404892942,1770657015771,-6063.79,0.00053326,120]
[404892943,1770657015796,-6063.79,0.000536,120]
[404892944,1770657015820,-6063.79,0.00053874,120]
[404892945,1770657015845,-6063.79,0.00054148,120]
[404892946,1770657015869,-6063.79,0.00054422,120]
[404892947,1770657015894,-6063.79,0.00054696,120]
[404892948,1770657015920,-150.0,0.00054696,120]
[404892949,1770657015946,-3984.34,0.00054794,120]
[404892950,1770657015972,-6063.79,0.0005497,120]
[404892951,1770657015998,-6063.79,0.00055244,120]
[404892952,1770657016023,-6063.79,0.00055518,120]
[404892953,1770657016048,-6063.79,0.00055792,120]
[404892954,1770657016074,-6063.79,0.00056066,120]
[404892955,1770657016099,-6063.79,0.0005634,120]
[404892956,1770657016124,-6063.79,0.00056614,120]
[404892957,1770657016153,-2443.73297094,0.00056621,5]
[404892958,1770657016178,-154.7,0.00056621,30]
[404892959,1770657016202,-773.55,0.00056621,30]
[404892960,1770657016227,-177.0,0.00056696,120]
[404892961,1770657016251,-6063.79,0.00056888,120]
[404892962,1770657016276,-6063.79,0.00057162,120]
[404892963,1770657016301,-6063.93941055,0.00057436,120]
[404892964,1770657016327,-204.0,0.00058696,120]
[404892965,1770657016364,-401.0,0.00059793,61]
[404892966,1770657016697,172.98,0.0004,120]
[404892981,1770657031882,-167.11262935,0.00043084,120]
[404892983,1770657031892,-167.11262935,0.00043084,120]
[404892984,1770657031903,-155.0,0.00043084,2]
[404892986,1770657031913,-401.0,0.00060113,61]
[404892988,1770657031933,-231.0,0.00060696,120]
[404892990,1770657031943,-258.0,0.00062696,120]
[404892992,1770657031953,-285.0,0.00064696,120]
[404892994,1770657031964,-2443.73297094,0.00064989,5]
[404892995,1770657031973,-2000.0,0.00064999,30]
[404892997,1770657031982,-3017.42190019,0.00065689,2]
[404892999,1770657031991,-712.0,0.00076216,31]
[404893001,1770657032001,-2157.0,0.00080427,120]
[404893003,1770657032010,-632.0,0.00080427,120]
[404893005,1770657032021,-200.0,0.00082192,120]
[404893007,1770657032030,-200.0,0.00082192,120]
[404893008,1770657032039,-200.0,0.00082192,120]
[404893010,1770657032048,-200.0,0.00082192,120]
[404893012,1770657032058,-200.0,0.00082192,120]
[404893014,1770657032067,-200.0,0.00082192,120]
[404893016,1770657032076,-200.0,0.00082192,120]
[404893018,1770657032085,-200.0,0.00082192,120]
[404893020,1770657032094,-200.0,0.00082192,120]
[404893021,1770657032104,-200.0,0.00082192,120]
[404893023,1770657032113,-200.0,0.00082192,120]
[404893025,1770657032122,-200.0,0.00082192,120]
[404893027,1770657032131,-200.0,0.00082192,120]
[404893029,1770657032140,-200.0,0.00082192,120]
[404893031,1770657032149,-200.0,0.00082192,120]
[404893033,1770657032159,-200.0,0.00082192,120]
[404893034,1770657032168,-200.0,0.00082192,120]
[404893036,1770657032177,-200.0,0.00082192,120]
[404893038,1770657032186,-200.0,0.00082192,120]
[404893040,1770657032195,-200.0,0.00082192,120]
[404893042,1770657032206,-200.0,0.00082192,120]
[404893044,1770657032215,-200.0,0.00082192,120]
[404893046,1770657032224,-200.0,0.00082192,120]
[404893048,1770657032233,-200.0,0.00082192,120]
[404893049,1770657032242,-200.0,0.00082192,120]
[404893051,1770657032251,-200.0,0.00082192,120]
[404893053,1770657032261,-200.0,0.00082192,120]
[404893054,1770657032270,-200.0,0.00082192,120]
[404893056,1770657032279,-200.0,0.00082192,120]
[404893058,1770657032288,-200.0,0.00082192,120]
[404893060,1770657032297,-331.88432631,0.00082608,2]
[404893154,1770657038143,-3463.14351292,0.00082608,2]
[404893155,1770657038153,-153.446,0.00084242,2]
[404893156,1770657038163,-266.554,0.00084242,120]
[404893157,1770657038172,-180.0,0.00084242,2]
[404893158,1770657038181,-3984.34,0.00087671,120]
[404893159,1770657038191,-4572.63377827,0.00099528,2]
[404893160,1770657038200,-2199.63,0.001,120]
[404893161,1770657038211,-890.5759333,0.001,120]
[404893162,1770657038221,-5350.23971731,0.00116448,2]
[404893163,1770657038230,-3984.34,0.00120547,120]
[404893164,1770657038240,-6127.84565634,0.00133368,2]
[404893166,1770657038338,-164.687869,0.00136986,120]
[404893167,1770657038371,-200.0,0.00149085,120]
[404893168,1770657038380,-2443.73297094,0.00150278,30]
[404893169,1770657038390,-5610.04409515,0.00150288,2]
[404893170,1770657038513,-974.64505038,0.00150288,2]
[404893171,1770657038523,-3984.34,0.00153424,120]
[404893172,1770657038533,-6837.41107571,0.00167208,2]
[404893173,1770657038543,-164.687869,0.00182648,120]
[404893174,1770657038552,-7129.01330285,0.00184127,2]
[404893175,1770657038562,-3984.34,0.00186301,120]
[404893176,1770657038572,-250.0,0.00197425,60]
[404893177,1770657038581,-500.0,0.00197425,60]
[404893178,1770657038591,-2168.07,0.00198,2]
[404893179,1770657038605,-7342.85493609,0.00201047,2]
[404893180,1770657038617,-151.0,0.00213175,120]
[404893181,1770657038627,-151.0,0.00213175,120]
[404893182,1770657038637,-250.0,0.00213999,30]
[404893183,1770657038647,-500.0,0.00213999,30]
[404893184,1770657038657,-2000.0,0.00213999,30]
[404893185,1770657038667,-2443.73297094,0.00217957,60]
[404893186,1770657038677,-7673.33746018,0.00217967,2]
[404893187,1770657038688,-3984.34,0.00219178,120]
[404893188,1770657038699,-10381.63607589,0.0022,120]
[404893189,1770657038711,-876.63288091,0.00228,120]
[404893190,1770657038724,-164.687869,0.00228311,120]
[404893191,1770657038734,-2000.0,0.002289,120]
[404893192,1770657038746,-20000.0,0.002298,120]
[404893193,1770657038756,-214.68,0.0023,120]
[404893194,1770657038768,-214.68,0.0023,120]
[404893195,1770657038778,-250.0,0.00232274,60]
[404893196,1770657038788,-500.0,0.00232274,60]
[404893197,1770657038798,-9484.63402099,0.002339,60]
[404893205,1770657044358,-1816.309412,0.00030137,120]
[404893206,1770657044383,-697.0762,0.00030137,120]
[404893211,1770657045822,-84.21031888,0.00030137,120]
[404893212,1770657045832,-12242.46224561,0.002339,60]
[404893213,1770657045842,-7848.29879646,0.00234887,2]
[404893214,1770657045852,-20000.0,0.0023688,120]
[404893215,1770657045865,-250.0,0.00237879,120]
[404893216,1770657045875,-500.0,0.00237879,120]
[404893217,1770657045885,-20000.0,0.0023788,120]
[404893218,1770657045895,-250.0,0.00238708,30]
[404893219,1770657045905,-500.0,0.00238708,30]
[404893220,1770657045915,-2000.0,0.00238708,30]
[404893221,1770657045925,-20000.0,0.002388,120]
[404893222,1770657045935,-5000.0,0.002389,120]
[404893223,1770657045945,-913.0,0.0023949,120]
[404893224,1770657045954,-200.0,0.0023999,120]
[404893225,1770657045966,-281.60192599,0.0024,120]
[404893226,1770657045976,-250.0,0.00244799,120]
[404893227,1770657045986,-500.0,0.00244799,120]
[404893228,1770657045996,-4887.46594188,0.00244915,60]
[404893229,1770657046006,-1554.64782968,0.00244924,20]
[404893230,1770657046016,-2000.0,0.00244933,2]
[404893231,1770657046026,-2000.0,0.00244933,2]
[404893232,1770657046036,-151.0,0.00245025,120]
[404893233,1770657046046,-151.0,0.00245025,120]
[404893234,1770657046055,-487.0,0.00245025,120]
[404893235,1770657046066,-487.0,0.00245025,120]
[404893236,1770657046076,-487.0,0.00245025,120]
[404893237,1770657046086,-487.0,0.00245025,120]
[404893238,1770657046096,-487.0,0.00245025,120]
[404893239,1770657046106,-487.0,0.00245025,120]
[404893240,1770657046115,-487.0,0.00245025,120]
[404893241,1770657046125,-487.0,0.00245025,120]
[404893242,1770657046134,-487.0,0.00245025,120]
[404893243,1770657046144,-487.0,0.00245025,120]
[404893244,1770657046153,-487.0,0.00245025,120]
[404893245,1770657046162,-487.0,0.00245025,120]
[404893246,1770657046172,-487.0,0.00245025,120]
[404893247,1770657046181,-487.0,0.00245025,120]
[404893248,1770657046190,-487.0,0.00245025,120]
[404893249,1770657046200,-487.0,0.00245025,120]
[404893250,1770657046209,-487.0,0.00245025,120]
[404893251,1770657046219,-487.0,0.00245025,120]
[404893252,1770657046228,-487.0,0.00245025,120]
[404893253,1770657046237,-487.0,0.00245025,120]
[404893254,1770657046246,-487.0,0.00245025,120]
[404893255,1770657046256,-856.06,0.00245025,120]
[404893256,1770657046265,-2443.73297094,0.0024507,60]
[404893257,1770657046274,-300.0,0.0024508,2]
[404893258,1770657046283,-310.0,0.0024508,2]
[404893259,1770657046292,-250.0,0.0024508,2]
[404893260,1770657046302,-250.0,0.0024508,2]
[404893261,1770657046311,-250.0,0.0024508,2]
[404893262,1770657046321,-250.0,0.0024508,2]
[404893263,1770657046330,-250.0,0.0024508,2]
[404893264,1770657046339,-304.0,0.0024508,2]
[404893265,1770657046348,-251.0,0.0024508,2]
[404893266,1770657046357,-180.0,0.00245162,2]
[404893267,1770657046367,-186.0,0.00245162,2]
[404893268,1770657046376,-250.0,0.00245162,2]
[404893269,1770657046385,-250.0,0.00245162,2]
[404893270,1770657046394,-250.0,0.00245162,2]
[404893271,1770657046404,-182.0,0.00245162,2]
[404893272,1770657046413,-151.0,0.00245162,2]
[404893273,1770657046422,-250.0,0.00245244,2]
[404893274,1770657046432,-371.0,0.00245244,2]
[404893275,1770657046441,-180.0,0.00246,60]
[404893276,1770657046451,-250.0,0.00247399,30]
[404893277,1770657046460,-250.0,0.00247399,120]
[404893278,1770657046471,-500.0,0.00247399,30]
[404893279,1770657046481,-500.0,0.00247399,120]
[404893280,1770657046569,-2000.0,0.00247399,30]
[404893281,1770657046579,-169.44293844,0.0025,120]
[404893282,1770657046589,-3000.0,0.0025,120]
[404893283,1770657046598,-8217.6616175,0.00251807,2]
[404893284,1770657046607,-3984.34,0.00252054,120]
[404893285,1770657046616,-500.0,0.00259,120]
[404893286,1770657046626,-8353.74265684,0.00268726,2]
[404893287,1770657046635,-2443.73297094,0.00273963,60]
[404893288,1770657046644,-300.0,0.00273972,2]
[404893289,1770657046654,-300.0,0.00273972,2]
[404893290,1770657046663,-259.8,0.00273973,120]
[404893291,1770657046672,-259.8,0.00273973,120]
[404893292,1770657046682,-259.8,0.00273973,120]
[404893293,1770657046691,-259.8,0.00273973,120]
[404893294,1770657046700,-259.8,0.00273973,120]
[404893295,1770657046710,-259.8,0.00273973,120]
[404893296,1770657046721,-259.8,0.00273973,120]
[404893297,1770657046735,-259.8,0.00273973,120]
[404893298,1770657046744,-259.8,0.00273973,120]
[404893299,1770657046753,-259.8,0.00273973,120]
[404893300,1770657046763,-259.8,0.00273973,120]
[404893301,1770657046773,-259.8,0.00273973,120]
[404893303,1770657046782,-259.8,0.00273973,120]
[404893305,1770657046793,-259.8,0.00273973,120]
[404893306,1770657046803,-259.8,0.00273973,120]
[404893307,1770657046812,-259.8,0.00273973,120]
[404893308,1770657046821,-151.0,0.00273973,120]
[404893309,1770657046830,-259.8,0.00273973,120]
[404893310,1770657046840,-151.0,0.00273973,120]
[404893311,1770657046849,-259.8,0.00273973,120]
[404893312,1770657046858,-259.8,0.00273973,120]
[404893313,1770657046867,-259.8,0.00273973,120]
[404893314,1770657046876,-151.0,0.00273973,120]
[404893315,1770657046886,-151.0,0.00273973,120]
[404893316,1770657046895,-151.0,0.00273973,120]
[404893317,1770657046905,-151.0,0.00273973,120]
[404893318,1770657046915,-151.0,0.00273973,120]
[404893319,1770657046924,-151.0,0.00273973,120]
[404893320,1770657046933,-151.0,0.00273973,120]
[404893321,1770657046943,-151.0,0.00273973,120]
[404893322,1770657046952,-151.0,0.00273973,120]
[404893323,1770657046961,-215.671761,0.00273973,120]
[404893324,1770657046970,-151.0,0.00273973,10]
[404893325,1770657046980,-151.0,0.00273973,10]
[404893326,1770657046990,-151.0,0.00273973,10]
[404893327,1770657046999,-151.0,0.00273973,120]
[404893328,1770657047009,-151.0,0.00273973,120]
[404893329,1770657047019,-151.0,0.00273973,120]